fUST/lending_fUST_20240825
["ID","MTS","AMOUNT","RATE_DAILY","PERIOD"]
[335833544,1724523044531,-559.14,0.00013698,2]
[335833546,1724523044540,-500.0,0.00013698,2]
[335833548,1724523044549,-500.0,0.00013698,2]
[335833550,1724523044558,-500.0,0.00013698,2]
[335833552,1724523044567,-500.0,0.00013698,2]
[335833554,1724523044575,-500.0,0.00013698,2]
[335833556,1724523044584,-597.83,0.00013698,2]
[335833558,1724523044593,-644.99,0.00013698,2]
[335833560,1724523044603,-682.2,0.00013698,2]
[335833562,1724523044612,-500.0,0.00013698,2]
[335833564,1724523044621,-500.0,0.00013698,2]
[335833566,1724523044630,-500.0,0.00013698,2]
[335833568,1724523044640,-500.0,0.00013698,2]
[335833570,1724523044650,-500.0,0.00013698,2]
[335833572,1724523044659,-500.0,0.00013698,2]
[335833574,1724523044669,-500.0,0.00013698,2]
[335833576,1724523044678,-500.0,0.00013698,2]
[335833578,1724523044687,-500.0,0.00013698,2]
[335833581,1724523044697,-500.0,0.00013698,2]
[335833583,1724523044706,-500.0,0.00013698,2]
[335833585,1724523044715,-500.0,0.00013698,2]
[335833587,1724523044725,-500.0,0.00013698,2]
[335833588,1724523044735,-500.0,0.00013698,2]
[335833590,1724523044744,-500.0,0.00013698,2]
[335833593,1724523044754,-500.0,0.00013698,2]
[335833595,1724523044763,-500.0,0.00013698,2]
[335833596,1724523044772,-500.0,0.00013698,2]
[335833598,1724523044781,-500.0,0.00013698,2]
[335833600,1724523044790,-500.0,0.00013698,2]
[335833602,1724523044799,-500.0,0.00013698,2]
[335833604,1724523044808,-500.0,0.00013698,2]
[335833606,1724523044817,-500.0,0.00013698,2]
[335833608,1724523044826,-500.0,0.00013698,2]
[335833611,1724523044837,-500.0,0.00013698,2]
[335833613,1724523044847,-500.0,0.00013698,2]
[335833615,1724523044858,-500.0,0.00013698,2]
[335833617,1724523044868,-500.0,0.00013698,2]
[335833619,1724523044877,-500.0,0.00013698,2]
[335833621,1724523044886,-500.0,0.00013698,2]
[335833623,1724523044895,-500.0,0.00013698,2]
[335833625,1724523044904,-396.3272704,0.00013698,2]
[335833642,1724523045062,-196.90814632,0.00012898,2]
[335833644,1724523045072,-124.3427296,0.00013698,2]
[335833646,1724523045081,-500.0,0.00013698,2]
[335833648,1724523045090,-512.44720167,0.00013698,2]
[335833650,1724523045100,-500.0,0.00013698,2]
[335833652,1724523045109,-500.0,0.00013698,2]
[335833654,1724523045118,-500.0,0.00013698,2]
[335833656,1724523045128,-500.0,0.00013698,2]
[335833658,1724523045137,-500.0,0.00013698,2]
[335833660,1724523045147,-500.0,0.00013698,2]
[335833663,1724523045156,-500.0,0.00013698,2]
[335833665,1724523045165,-2178.25,0.00013698,2]
[335833667,1724523045175,-500.0,0.00013698,2]
[335833669,1724523045184,-500.0,0.00013698,2]
[335833671,1724523045194,-500.0,0.00013698,2]
[335833672,1724523045203,-500.0,0.00013698,2]
[335833674,1724523045212,-500.0,0.00013698,2]
[335833677,1724523045224,-500.0,0.00013698,2]
[335833679,1724523045233,-342.60592239,0.00013698,2]
[335833681,1724523045247,-388.32407761,0.00013698,2]
[335833683,1724523045257,-500.0,0.00013698,2]
[335833685,1724523045267,-500.0,0.00013698,2]
[335833687,1724523045276,-501.26450768,0.00013698,2]
[335833689,1724523045285,-500.0,0.00013698,2]
[335833691,1724523045296,-500.0,0.00013698,2]
[335833693,1724523045305,-500.0,0.00013698,2]
[335833715,1724523045498,-500.0,0.00013698,2]
[335833717,1724523045510,-500.0,0.00013698,2]
[335833719,1724523045520,-500.0,0.00013698,2]
[335833721,1724523045529,-500.0,0.00013698,2]
[335833723,1724523045538,-500.0,0.00013698,2]
[335833725,1724523045548,-789.5,0.00013698,2]
[335833727,1724523045557,-648.57,0.00013698,2]
[335833729,1724523045566,-500.0,0.00013698,2]
[335833731,1724523045576,-500.0,0.00013698,2]
[335833733,1724523045585,-500.0,0.00013698,2]
[335833735,1724523045594,-500.0,0.00013698,2]
[335833737,1724523045603,-500.0,0.00013698,2]
[335833739,1724523045612,-500.0,0.00013698,2]
[335833741,1724523045622,-500.0,0.00013698,2]
[335833743,1724523045631,-849.55,0.00013698,2]
[335833745,1724523045640,-500.0,0.00013698,2]
[335833748,1724523045650,-766.31,0.00013698,2]
[335833750,1724523045659,-500.0,0.00013698,2]
[335833752,1724523045668,-500.0,0.00013698,2]
[335833754,1724523045678,-500.0,0.00013698,2]
[335833756,1724523045687,-500.0,0.00013698,2]
[335833758,1724523045696,-500.0,0.00013698,2]
[335833760,1724523045706,-500.0,0.00013698,2]
[335833762,1724523045715,-500.0,0.00013698,2]
[335833764,1724523045725,-500.0,0.00013698,2]
[335833766,1724523045734,-500.0,0.00013698,2]
[335833768,1724523045744,-500.0,0.00013698,2]
[335833770,1724523045753,-500.0,0.00013698,2]
[335833772,1724523045763,-500.0,0.00013698,2]
[335833774,1724523045772,-500.0,0.00013698,2]
[335833776,1724523045781,-500.0,0.00013698,2]
[335833778,1724523045791,-500.0,0.00013698,2]
[335833780,1724523045801,-500.0,0.00013698,2]
[335833782,1724523045811,-500.0,0.00013698,2]
[335833784,1724523045820,-500.0,0.00013698,2]
[335833786,1724523045831,-500.0,0.00013698,2]
[335833788,1724523045840,-500.0,0.00013698,2]
[335833790,1724523045850,-500.0,0.00013698,2]
[335833792,1724523045860,-500.0,0.00013698,2]
[335833794,1724523045869,-500.0,0.00013698,2]
[335833796,1724523045879,-500.0,0.00013698,2]
[335833798,1724523045889,-254.57,0.00013698,2]
[335833800,1724523045898,-500.0,0.00013698,2]
[335833802,1724523045908,-500.0,0.00013698,2]
[335833804,1724523045917,-803.1,0.00013698,2]
[335833807,1724523045927,-500.0,0.00013698,2]
[335833809,1724523045937,-787.17,0.00013698,2]
[335833811,1724523045947,-500.0,0.00013698,2]
[335833814,1724523045956,-500.0,0.00013698,2]
[335833817,1724523045965,-516.55611504,0.00013698,2]
[335833819,1724523045975,-500.0,0.00013698,2]
[335833821,1724523045984,-509.51694536,0.00013698,2]
[335833824,1724523045994,-979.46,0.00013698,2]
[335833827,1724523046003,-500.0,0.00013698,2]
[335833829,1724523046013,-500.0,0.00013698,2]
[335833832,1724523046023,-260.0,0.00013698,2]
[335833834,1724523046032,-505.24701066,0.00013698,2]
[335833836,1724523046041,-1342.34,0.00013698,2]
[335833837,1724523046051,-1025.59,0.00013698,2]
[335833839,1724523046060,-500.0,0.00013698,2]
[335833842,1724523046070,-500.0,0.00013698,2]
[335833844,1724523046079,-500.0,0.00013698,2]
[335833845,1724523046089,-500.0,0.00013698,2]
[335833848,1724523046098,-500.0,0.00013698,2]
[335833849,1724523046107,-500.0,0.00013698,2]
[335833851,1724523046116,-500.0,0.00013698,2]
[335833853,1724523046125,-1086.62,0.00013698,2]
[335833855,1724523046134,-500.0,0.00013698,2]
[335833857,1724523046143,-332.92760639,0.00013698,2]
[335833859,1724523046152,-500.0,0.00013698,2]
[335833861,1724523046161,-500.0,0.00013698,2]
[335833863,1724523046171,-500.0,0.00013698,2]
[335833865,1724523046180,-500.0,0.00013698,2]
[335833867,1724523046189,-500.0,0.00013698,2]
[335833869,1724523046198,-500.0,0.00013698,2]
[335833871,1724523046207,-578.74,0.00013698,2]
[335833873,1724523046216,-500.0,0.00013698,2]
[335833875,1724523046228,-590.47,0.00013698,2]
[335833877,1724523046237,-568.21022219,0.00013698,2]
[335833879,1724523046246,-500.0,0.00013698,2]
[335833881,1724523046255,-500.0,0.00013698,2]
[335833883,1724523046264,-500.0,0.00013698,2]
[335833885,1724523046275,-1991.94,0.00013698,2]
[335833887,1724523046284,-500.57804816,0.00013698,2]
[335833889,1724523046293,-719.35,0.00013698,2]
[335833891,1724523046302,-500.0,0.00013698,2]
[335833893,1724523046312,-660.68,0.00013698,2]
[335833895,1724523046322,-500.0,0.00013698,2]
[335833897,1724523046331,-674.65,0.00013698,2]
[335833899,1724523046339,-500.0,0.00013698,2]
[335833901,1724523046349,-1051.1,0.00013698,2]
[335833903,1724523046358,-500.0,0.00013698,2]
[335833905,1724523046367,-500.0,0.00013698,2]
[335833907,1724523046376,-500.0,0.00013698,2]
[335833908,1724523046385,-3081.74,0.00013698,2]
[335833909,1724523046396,-500.0,0.00013698,2]
[335833910,1724523046405,-500.0,0.00013698,2]
[335833911,1724523046414,-500.0,0.00013698,2]
[335833912,1724523046423,-704.2,0.00013698,2]
[335833913,1724523046435,-500.0,0.00013698,2]
[335833914,1724523046444,-500.0,0.00013698,2]
[335833915,1724523046453,-500.0,0.00013698,2]
[335833916,1724523046462,-500.0,0.00013698,2]
[335833918,1724523046475,-500.0,0.00013698,2]
[335833919,1724523046484,-706.83,0.00013698,2]
[335833922,1724523046494,-500.0,0.00013698,2]
[335833924,1724523046504,-888.85,0.00013698,2]
[335833926,1724523046513,-704.48,0.00013698,2]
[335833928,1724523046522,-500.0,0.00013698,2]
[335833930,1724523046531,-500.0,0.00013698,2]
[335833932,1724523046540,-834.49,0.00013698,2]
[335833933,1724523046550,-500.0,0.00013698,2]
[335833935,1724523046560,-500.0,0.00013698,2]
[335833937,1724523046569,-500.0,0.00013698,2]
[335833940,1724523046578,-500.0,0.00013698,2]
[335833942,1724523046587,-500.0,0.00013698,2]
[335833944,1724523046597,-500.0,0.00013698,2]
[335833947,1724523046607,-500.0,0.00013698,2]
[335833949,1724523046616,-500.0,0.00013698,2]
[335833951,1724523046626,-500.0,0.00013698,2]
[335833953,1724523046635,-500.0,0.00013698,2]
[335833955,1724523046644,-320.79554636,0.00013698,2]
[335833957,1724523046654,-500.0,0.00013698,2]
[335833959,1724523046663,-500.0,0.00013698,2]
[335833960,1724523046672,-500.0,0.00013698,2]
[335833962,1724523046681,-500.0,0.00013698,2]
[335833964,1724523046691,-500.0,0.00013698,2]
[335833966,1724523046700,-500.0,0.00013698,2]
[335833968,1724523046710,-500.0,0.00013698,2]
[335833970,1724523046719,-500.0,0.00013698,2]
[335833972,1724523046728,-500.0,0.00013698,2]
[335833974,1724523046738,-500.0,0.00013698,2]
[335833976,1724523046747,-500.0,0.00013698,2]
[335833978,1724523046756,-500.0,0.00013698,2]
[335833980,1724523046765,-500.0,0.00013698,2]
[335833982,1724523046773,-261.20592925,0.00013698,2]
[335833984,1724523046783,-1176.71,0.00013698,2]
[335833986,1724523046792,-500.0,0.00013698,2]
[335833988,1724523046801,-500.0,0.00013698,2]
[335833990,1724523046810,-150.0,0.00013698,2]
[335833992,1724523046819,-660.21,0.00013698,2]
[335833994,1724523046828,-870.76,0.00013698,2]
[335833996,1724523046837,-160.23883648,0.00013698,2]
[335834043,1724523047310,-2129.03639097,0.00012356,2]
[335834045,1724523047319,-154.72922386,0.00012971,2]
[335834047,1724523047330,-400.48116352,0.00013698,2]
[335834049,1724523047339,-389.130959,0.00013698,2]
[335834051,1724523047350,-500.0,0.00013698,2]
[335834053,1724523047360,-1040.23,0.00013698,2]
[335834055,1724523047369,-500.0,0.00013698,2]
[335834057,1724523047378,-829.06,0.00013698,2]
[335834059,1724523047388,-500.0,0.00013698,2]
[335834061,1724523047397,-507.9503216,0.00013698,2]
[335834063,1724523047407,-570.87,0.00013698,2]
[335834065,1724523047416,-500.0,0.00013698,2]
[335834067,1724523047428,-500.0,0.00013698,2]
[335834069,1724523047440,-500.0,0.00013698,2]
[335834071,1724523047451,-500.0,0.00013698,2]
[335834073,1724523047462,-401.67587048,0.00013698,2]
[335834074,1724523047476,-500.0,0.00013698,2]
[335834076,1724523047485,-500.0,0.00013698,2]
[335834077,1724523047494,-544.01843689,0.00013698,2]
[335834079,1724523047505,-500.0,0.00013698,2]
[335834081,1724523047514,-500.0,0.00013698,2]
[335834082,1724523047523,-500.0,0.00013698,2]
[335834084,1724523047532,-500.0,0.00013698,2]
[335834086,1724523047542,-500.0,0.00013698,2]
[335834087,1724523047552,-650.92,0.00013698,2]
[335834089,1724523047561,-500.0,0.00013698,2]
[335834091,1724523047570,-500.0,0.00013698,2]
[335834092,1724523047580,-500.0,0.00013698,2]
[335834094,1724523047590,-982.5,0.00013698,2]
[335834096,1724523047599,-233.55218484,0.00013698,2]
[335834097,1724523047608,-500.0,0.00013698,2]
[335834099,1724523047618,-500.0,0.00013698,2]
[335834101,1724523047627,-508.04888372,0.00013698,2]
[335834102,1724523047636,-803.18,0.00013698,2]
[335834104,1724523047646,-536.24164734,0.00013698,2]
[335834106,1724523047656,-500.0,0.00013698,2]
[335834108,1724523047665,-500.0,0.00013698,2]
[335834109,1724523047674,-1390.64,0.00013698,2]
[335834111,1724523047684,-500.0,0.00013698,2]
[335834113,1724523047693,-500.0,0.00013698,2]
[335834115,1724523047703,-500.0,0.00013698,2]
[335834116,1724523047713,-500.0,0.00013698,2]
[335834118,1724523047726,-500.0,0.00013698,2]
[335834120,1724523047737,-2655.4,0.00013698,2]
[335834121,1724523047747,-500.0,0.00013698,2]
[335834123,1724523047757,-500.0,0.00013698,2]
[335834125,1724523047766,-500.0,0.00013698,2]
[335834127,1724523047777,-732.84,0.00013698,2]
[335834129,1724523047787,-500.0,0.00013698,2]
[335834131,1724523047797,-500.0,0.00013698,2]
[335834132,1724523047808,-500.0,0.00013698,2]
[335834134,1724523047817,-500.0,0.00013698,2]
[335834136,1724523047827,-657.62,0.00013698,2]
[335834138,1724523047838,-500.0,0.00013698,2]
[335834139,1724523047847,-848.69,0.00013698,2]
[335834140,1724523047858,-928.64,0.00013698,2]
[335834141,1724523047868,-500.0,0.00013698,2]
[335834142,1724523047878,-500.0,0.00013698,2]
[335834143,1724523047888,-500.0,0.00013698,2]
[335834144,1724523047898,-500.0,0.00013698,2]
[335834145,1724523047907,-500.0,0.00013698,2]
[335834146,1724523047918,-683.17,0.00013698,2]
[335834147,1724523047928,-500.0,0.00013698,2]
[335834148,1724523047939,-500.0,0.00013698,2]
[335834149,1724523047950,-500.0,0.00013698,2]
[335834150,1724523047960,-500.0,0.00013698,2]
[335834151,1724523047970,-1437.31,0.00013698,2]
[335834152,1724523047982,-571.96554117,0.00013698,2]
[335834153,1724523047991,-2875.1,0.00013698,2]
[335834154,1724523048000,-665.47,0.00013698,2]
[335834155,1724523048011,-500.0,0.00013698,2]
[335834156,1724523048021,-1582.14,0.00013698,2]
[335834157,1724523048031,-500.0,0.00013698,2]
[335834158,1724523048041,-500.0,0.00013698,2]
[335834159,1724523048051,-500.0,0.00013698,2]
[335834160,1724523048060,-1011.28,0.00013698,2]
[335834161,1724523048070,-749.62,0.00013698,2]
[335834162,1724523048079,-613.66,0.00013698,2]
[335834163,1724523048089,-553.05,0.00013698,2]
[335834164,1724523048099,-500.0,0.00013698,2]
[335834165,1724523048109,-500.0,0.00013698,2]
[335834166,1724523048118,-334.53637255,0.00013698,2]
[335834167,1724523048128,-500.0,0.00013698,2]
[335834168,1724523048138,-500.0,0.00013698,2]
[335834169,1724523048147,-643.62,0.00013698,2]
[335834170,1724523048157,-500.0,0.00013698,2]
[335834172,1724523048167,-594.17,0.00013698,2]
[335834173,1724523048176,-376.12439844,0.00013698,2]
[335834175,1724523048187,-500.0,0.00013698,2]
[335834177,1724523048196,-1141.39,0.00013698,2]
[335834178,1724523048205,-620.41,0.00013698,2]
[335834179,1724523048215,-634.39,0.00013698,2]
[335834180,1724523048226,-500.0,0.00013698,2]
[335834181,1724523048236,-500.0,0.00013698,2]
[335834182,1724523048245,-911.86,0.00013698,2]
[335834183,1724523048254,-500.0,0.00013698,2]
[335834184,1724523048264,-500.0,0.00013698,2]
[335834185,1724523048274,-500.0,0.00013698,2]
[335834186,1724523048283,-500.0,0.00013698,2]
[335834187,1724523048294,-500.0,0.00013698,2]
[335834188,1724523048304,-500.0,0.00013698,2]
[335834190,1724523048314,-1224.12,0.00013698,2]
[335834191,1724523048324,-1037.25,0.00013698,2]
[335834193,1724523048333,-500.0,0.00013698,2]
[335834194,1724523048343,-915.41,0.00013698,2]
[335834195,1724523048353,-500.0,0.00013698,2]
[335834196,1724523048363,-500.0,0.00013698,2]
[335834197,1724523048372,-500.0,0.00013698,2]
[335834198,1724523048381,-683.92,0.00013698,2]
[335834199,1724523048391,-500.0,0.00013698,2]
[335834200,1724523048401,-635.82,0.00013698,2]
[335834201,1724523048410,-500.0,0.00013698,2]
[335834202,1724523048420,-500.0,0.00013698,2]
[335834203,1724523048433,-1126.03,0.00013698,2]
[335834204,1724523048444,-500.0,0.00013698,2]
[335834205,1724523048455,-500.0,0.00013698,2]
[335834206,1724523048466,-512.71688621,0.00013698,2]
[335834207,1724523048479,-503.3527862,0.00013698,2]
[335834208,1724523048490,-500.0,0.00013698,2]
[335834209,1724523048501,-500.0,0.00013698,2]
[335834210,1724523048512,-500.0,0.00013698,2]
[335834211,1724523048525,-391.54057447,0.00013698,2]
[335834212,1724523048534,-634.96,0.00013698,2]
[335834213,1724523048543,-500.0,0.00013698,2]
[335834214,1724523048552,-1406.33,0.00013698,2]
[335834215,1724523048561,-871.95,0.00013698,2]
[335834216,1724523048570,-500.0,0.00013698,2]
[335834217,1724523048579,-529.59851906,0.00013698,2]
[335834218,1724523048588,-500.0,0.00013698,2]
[335834219,1724523048598,-559.55,0.00013698,2]
[335834220,1724523048608,-500.0,0.00013698,2]
[335834221,1724523048618,-1370.29,0.00013698,2]
[335834222,1724523048628,-628.0,0.00013698,2]
[335834223,1724523048639,-1154.62,0.00013698,2]
[335834224,1724523048650,-294.63107153,0.00013698,2]
[335834225,1724523048661,-500.0,0.00013698,2]
[335834226,1724523048670,-500.0,0.00013698,2]
[335834227,1724523048680,-500.0,0.00013698,2]
[335834228,1724523048689,-889.51,0.00013698,2]
[335834229,1724523048699,-797.23,0.00013698,2]
[335834230,1724523048708,-918.96,0.00013698,2]
[335834231,1724523048718,-539.52664432,0.00013698,2]
[335834232,1724523048731,-500.0,0.00013698,2]
[335834233,1724523048741,-925.61,0.00013698,2]
[335834234,1724523048751,-500.0,0.00013698,2]
[335834235,1724523048762,-500.0,0.00013698,2]
[335834236,1724523048772,-500.0,0.00013698,2]
[335834237,1724523048782,-500.0,0.00013698,2]
[335834239,1724523048792,-729.02,0.00013698,2]
[335834240,1724523048801,-2406.81,0.00013698,2]
[335834242,1724523048811,-566.41,0.00013698,2]
[335834244,1724523048821,-737.32,0.00013698,2]
[335834246,1724523048831,-500.0,0.00013698,2]
[335834257,1724523049013,-500.0,0.00013698,2]
[335834258,1724523049025,-500.0,0.00013698,2]
[335834260,1724523049035,-1427.0,0.00013698,2]
[335834262,1724523049045,-500.0,0.00013698,2]
[335834264,1724523049055,-500.0,0.00013698,2]
[335834266,1724523049064,-500.0,0.00013698,2]
[335834267,1724523049073,-500.0,0.00013698,2]
[335834269,1724523049083,-500.0,0.00013698,2]
[335834271,1724523049095,-500.0,0.00013698,2]
[335834273,1724523049104,-523.95976346,0.00013698,2]
[335834275,1724523049114,-500.0,0.00013698,2]
[335834276,1724523049124,-1184.96,0.00013698,2]
[335834278,1724523049134,-1483.63,0.00013698,2]
[335834281,1724523049145,-500.0,0.00013698,2]
[335834283,1724523049155,-1045.77,0.00013698,2]
[335834284,1724523049164,-500.0,0.00013698,2]
[335834286,1724523049174,-682.64,0.00013698,2]
[335834288,1724523049184,-874.21,0.00013698,2]
[335834289,1724523049193,-532.96,0.00013698,2]
[335834292,1724523049204,-819.32,0.00013698,2]
[335834293,1724523049213,-500.0,0.00013698,2]
[335834295,1724523049223,-500.0,0.00013698,2]
[335834297,1724523049232,-500.0,0.00013698,2]
[335834299,1724523049242,-500.0,0.00013698,2]
[335834301,1724523049252,-671.69,0.00013698,2]
[335834303,1724523049261,-500.0,0.00013698,2]
[335834305,1724523049272,-500.0,0.00013698,2]
[335834307,1724523049281,-500.0,0.00013698,2]
[335834309,1724523049290,-500.0,0.00013698,2]
[335834311,1724523049300,-1186.23,0.00013698,2]
[335834313,1724523049309,-500.0,0.00013698,2]
[335834315,1724523049318,-500.0,0.00013698,2]
[335834317,1724523049328,-500.0,0.00013698,2]
[335834319,1724523049338,-211.5927313,0.00013698,2]
[335834320,1724523049348,-500.0,0.00013698,2]
[335834322,1724523049358,-500.0,0.00013698,2]
[335834324,1724523049368,-500.0,0.00013698,2]
[335834326,1724523049378,-500.0,0.00013698,2]
[335834328,1724523049388,-500.0,0.00013698,2]
[335834330,1724523049400,-491.77420213,0.00013698,2]
[335834332,1724523049409,-500.0,0.00013698,2]
[335834334,1724523049419,-500.0,0.00013698,2]
[335834336,1724523049431,-1253.5,0.00013698,2]
[335834338,1724523049441,-501.58574869,0.00013698,2]
[335834340,1724523049451,-1208.17,0.00013698,2]
[335834341,1724523049461,-500.26767741,0.00013698,2]
[335834343,1724523049470,-500.0,0.00013698,2]
[335834345,1724523049493,-500.0,0.00013698,2]
[335834347,1724523049503,-500.0,0.00013698,2]
[335834349,1724523049513,-500.0,0.00013698,2]
[335834351,1724523049523,-500.0,0.00013698,2]
[335834353,1724523049533,-573.61,0.00013698,2]
[335834355,1724523049543,-500.0,0.00013698,2]
[335834357,1724523049553,-500.0,0.00013698,2]
[335834359,1724523049563,-500.0,0.00013698,2]
[335834361,1724523049573,-1239.46,0.00013698,2]
[335834363,1724523049582,-500.0,0.00013698,2]
[335834365,1724523049592,-1805.44,0.00013698,2]
[335834367,1724523049601,-500.0,0.00013698,2]
[335834369,1724523049611,-500.0,0.00013698,2]
[335834371,1724523049621,-500.0,0.00013698,2]
[335834373,1724523049630,-548.02,0.00013698,2]
[335834375,1724523049640,-500.0,0.00013698,2]
[335834377,1724523049650,-500.0,0.00013698,2]
[335834379,1724523049660,-500.0,0.00013698,2]
[335834381,1724523049669,-500.0,0.00013698,2]
[335834383,1724523049679,-975.63,0.00013698,2]
[335834385,1724523049689,-500.0,0.00013698,2]
[335834387,1724523049698,-1241.05,0.00013698,2]
[335834389,1724523049708,-500.0,0.00013698,2]
[335834391,1724523049718,-1470.95,0.00013698,2]
[335834393,1724523049732,-769.3,0.00013698,2]
[335834395,1724523049741,-500.0,0.00013698,2]
[335834397,1724523049751,-500.0,0.00013698,2]
[335834399,1724523049761,-500.0,0.00013698,2]
[335834401,1724523049771,-500.0,0.00013698,2]
[335834403,1724523049781,-1181.87,0.00013698,2]
[335834405,1724523049790,-814.62,0.00013698,2]
[335834407,1724523049800,-864.17,0.00013698,2]
[335834408,1724523049810,-500.0,0.00013698,2]
[335834410,1724523049819,-500.0,0.00013698,2]
[335834412,1724523049830,-1483.36,0.00013698,2]
[335834414,1724523049840,-500.0,0.00013698,2]
[335834416,1724523049850,-500.0,0.00013698,2]
[335834418,1724523049861,-759.14,0.00013698,2]
[335834420,1724523049871,-500.0,0.00013698,2]
[335834422,1724523049880,-500.0,0.00013698,2]
[335834424,1724523049892,-500.0,0.00013698,2]
[335834426,1724523049902,-500.0,0.00013698,2]
[335834428,1724523049912,-500.0,0.00013698,2]
[335834430,1724523049921,-1420.29,0.00013698,2]
[335834432,1724523049931,-500.0,0.00013698,2]
[335834434,1724523049940,-780.13,0.00013698,2]
[335834436,1724523049949,-500.0,0.00013698,2]
[335834438,1724523049958,-1155.15,0.00013698,2]
[335834440,1724523049968,-500.0,0.00013698,2]
[335834442,1724523049980,-581.75,0.00013698,2]
[335834444,1724523049989,-500.0,0.00013698,2]
[335834445,1724523049998,-500.0,0.00013698,2]
[335834447,1724523050009,-500.0,0.00013698,2]
[335834449,1724523050018,-634.27,0.00013698,2]
[335834451,1724523050028,-500.0,0.00013698,2]
[335834453,1724523050037,-1726.51,0.00013698,2]
[335834456,1724523050048,-500.0,0.00013698,2]
[335834458,1724523050057,-503.18446818,0.00013698,2]
[335834460,1724523050068,-964.45,0.00013698,2]
[335834462,1724523050078,-500.0,0.00013698,2]
[335834464,1724523050087,-500.0,0.00013698,2]
[335834466,1724523050097,-500.0,0.00013698,2]
[335834467,1724523050106,-1041.45,0.00013698,2]
[335834470,1724523050117,-500.0,0.00013698,2]
[335834472,1724523050126,-500.0,0.00013698,2]
[335834473,1724523050136,-2085.88,0.00013698,2]
[335834475,1724523050145,-500.0,0.00013698,2]
[335834478,1724523050155,-500.0,0.00013698,2]
[335834479,1724523050165,-500.0,0.00013698,2]
[335834481,1724523050174,-500.0,0.00013698,2]
[335834483,1724523050185,-500.0,0.00013698,2]
[335834485,1724523050195,-620.58,0.00013698,2]
[335834487,1724523050204,-500.0,0.00013698,2]
[335834489,1724523050214,-1009.21,0.00013698,2]
[335834491,1724523050225,-500.0,0.00013698,2]
[335834494,1724523050237,-500.0,0.00013698,2]
[335834496,1724523050246,-796.42,0.00013698,2]
[335834498,1724523050256,-500.0,0.00013698,2]
[335834500,1724523050268,-500.0,0.00013698,2]
[335834502,1724523050278,-1669.28,0.00013698,2]
[335834504,1724523050289,-742.9,0.00013698,2]
[335834506,1724523050299,-815.98,0.00013698,2]
[335834508,1724523050310,-500.0,0.00013698,2]
[335834510,1724523050320,-500.0,0.00013698,2]
[335834512,1724523050330,-500.0,0.00013698,2]
[335834515,1724523050341,-2016.41,0.00013698,2]
[335834517,1724523050352,-734.34,0.00013698,2]
[335834519,1724523050363,-500.0,0.00013698,2]
[335834521,1724523050372,-211.62,0.00013698,2]
[335834523,1724523050383,-1286.77,0.00013698,2]